bitfinex-derivatives/quotes_BNBF0:USTF0_20250807
["timestamp","ask_amount","ask_price","bid_price","bid_amount"]
[1754566107602,1.1499046,777.81,776.44,1.138619]
[1754566107800,0.8649584,777.59,776.66,0.86204188]
[1754566108397,0.8649584,777.59,776.65,0.86204188]
[1754566108602,0.8649584,777.53,776.69,0.86204188]
[1754566108998,0.8649584,777.54,776.69,0.86204188]
[1754566109398,0.8649584,777.54,776.7,0.86204188]
[1754566109899,0.8649584,777.66,776.72,0.86204188]
[1754566111305,0.8649584,777.67,776.71,0.86204188]
[1754566111601,0.8649584,777.64,776.73,0.86204188]
[1754566112001,0.8649584,777.64,776.74,0.86204188]
[1754566112405,0.8649584,777.64,776.73,0.86204188]
[1754566113402,0.8649584,777.65,776.73,0.86204188]
[1754566114603,0.8649584,777.66,776.73,0.86204188]
[1754566115408,0.8649584,777.66,776.72,0.86204188]
[1754566117707,0.22380429,778.01,776.36,0.22386331]
[1754566117708,0.8649584,777.73,776.66,0.86204188]
[1754566118309,0.8649584,777.59,776.53,0.86204188]
[1754566120608,0.8649584,777.59,776.54,0.86204188]
[1754566120807,0.8649584,777.51,776.59,0.86204188]
[1754566121204,0.8649584,777.5,776.59,0.86204188]
[1754566124506,0.8649584,777.49,776.59,0.86204188]
[1754566124710,0.8649584,777.46,776.62,0.86204188]
[1754566124904,0.8649584,777.43,776.64,0.86204188]
[1754566127210,0.8649584,777.43,776.63,0.86204188]
[1754566127410,0.8649584,777.43,776.64,0.86204188]
[1754566127810,0.8649584,777.48,776.6,0.86204188]
[1754566128210,0.8649584,777.49,776.6,0.86204188]
[1754566130409,0.8649584,777.48,776.6,0.86204188]
[1754566133316,0.8649584,777.49,776.6,0.86204188]
[1754566133517,0.8649584,777.48,776.6,0.86204188]
[1754566133916,0.8649584,777.49,776.6,0.86204188]
[1754566134318,0.8649584,777.5,776.6,0.86204188]
[1754566134517,0.8649584,777.5,776.59,0.86204188]
[1754566134817,0.8649584,777.49,776.6,0.86204188]
[1754566135013,0.8649584,777.49,776.59,0.86204188]
[1754566135317,0.8649584,777.56,776.55,0.86204188]
[1754566135515,0.8649584,777.59,776.52,0.86204188]
[1754566135713,0.884,777.94,776.36,0.22386331]
[1754566135714,0.8649584,777.6,776.53,0.86204188]
[1754566135919,0.8649584,777.49,776.6,0.86204188]
[1754566136120,0.8649584,777.48,776.6,0.86204188]
[1754566136318,0.8649584,777.49,776.6,0.86204188]
[1754566136515,0.8649584,777.49,776.61,0.86204188]
[1754566137119,0.8649584,777.49,776.44,1.138619]
[1754566137120,0.8649584,777.49,776.62,0.86204188]
[1754566137420,0.8649584,777.55,776.68,0.86204188]
[1754566137914,0.8649584,777.55,776.79,0.86204188]
[1754566138119,0.8649584,777.66,776.79,0.86204188]
[1754566138320,0.8649584,777.79,776.92,0.86204188]
[1754566138620,0.8649584,777.81,776.91,0.86204188]
[1754566138816,0.8649584,777.8,776.92,0.86204188]
[1754566139423,0.8649584,777.81,776.91,0.86204188]
[1754566140118,0.8649584,777.82,776.91,0.86204188]
[1754566140618,0.884,777.94,776.91,0.86204188]
[1754566140619,0.8649584,777.81,776.91,0.86204188]
[1754566140818,0.8649584,777.83,776.9,0.86204188]
[1754566141422,0.8649584,777.84,776.9,0.86204188]
[1754566142218,0.8649584,777.85,776.89,0.86204188]
[1754566143023,0.8649584,777.84,776.9,0.86204188]
[1754566143223,0.8649584,777.85,776.89,0.86204188]
[1754566143922,0.8649584,777.85,776.9,0.86204188]
[1754566144224,0.8649584,777.85,776.89,0.86204188]
[1754566144624,0.8649584,777.86,776.89,0.86204188]
[1754566146228,0.8649584,777.87,776.88,0.86204188]
[1754566146729,0.8649584,777.88,776.88,0.86204188]
[1754566147128,0.8649584,777.88,776.87,0.86204188]
[1754566147431,0.8649584,777.88,776.88,0.86204188]
[1754566148225,0.8649584,777.88,776.87,0.86204188]
[1754566148428,0.8649584,777.88,776.88,0.86204188]
[1754566148828,0.8649584,777.85,776.9,0.86204188]
[1754566152328,0.8649584,777.84,776.9,0.86204188]
[1754566152831,0.8649584,777.85,776.9,0.86204188]
[1754566154330,0.8649584,777.84,776.9,0.86204188]
[1754566154529,0.8649584,777.83,776.91,0.86204188]
[1754566155031,0.8649584,777.89,776.87,0.86204188]
[1754566156330,0.8649584,777.88,776.87,0.86204188]
[1754566156732,0.8649584,777.87,776.88,0.86204188]
[1754566158437,0.8649584,777.86,776.89,0.86204188]
[1754566159437,0.8649584,777.85,776.89,0.86204188]
[1754566164436,0.8649584,777.86,776.89,0.86204188]
[1754566164834,0.8649584,777.85,776.89,0.86204188]
[1754566165038,0.8649584,777.79,776.93,0.86204188]
[1754566165236,1.1499046,777.95,776.94,0.86204188]
[1754566165535,1.1499046,777.96,776.93,0.86204188]
[1754566166241,1.1499046,778.0,776.92,0.86204188]
[1754566166540,1.1499046,778.01,776.92,0.86204188]
[1754566166936,1.1499046,778.0,776.92,0.86204188]
[1754566167442,1.1499046,778.01,776.92,0.86204188]
[1754566168142,1.1499046,778.3,776.81,0.86204188]
[1754566168341,1.1499046,778.31,776.82,0.86204188]
[1754566168538,0.22375104,778.11,776.82,0.86204188]
[1754566168742,0.22375104,778.11,776.81,0.86204188]
[1754566169944,0.22375104,778.11,776.84,0.86204188]
[1754566170347,0.22375104,778.11,776.92,0.86204188]
[1754566170544,0.22375104,778.11,776.95,0.86204188]
[1754566171144,0.22375104,778.11,776.98,0.86204188]
[1754566172244,0.22375104,778.11,776.97,0.86204188]
[1754566172646,0.22375104,778.11,776.98,0.86204188]
[1754566173345,0.22375104,778.11,777.07,0.86204188]
[1754566174849,0.22375104,778.11,777.03,0.86204188]
[1754566176450,0.22375104,778.11,777.02,0.86204188]
[1754566177053,0.22375104,778.11,777.03,0.86204188]
[1754566177250,0.22375104,778.11,777.03,0.85878512]
[1754566181049,0.22375104,778.11,777.09,0.85878512]
[1754566182353,0.22375104,778.11,777.1,0.85878512]
[1754566182750,0.882,778.1,777.1,0.85878512]
[1754566184451,0.882,778.1,777.08,0.85878512]
[1754566184750,0.882,778.1,777.09,0.85878512]
[1754566186758,0.882,778.1,777.1,0.85878512]
[1754566188461,0.882,778.1,777.05,0.85878512]
[1754566189458,0.882,778.1,777.07,0.85878512]
[1754566191356,0.882,778.1,777.08,0.85878512]
[1754566191956,0.882,778.1,777.07,0.85878512]
[1754566192355,0.882,778.1,777.08,0.85878512]
[1754566193157,0.882,778.1,776.65,0.22377766]
[1754566193158,0.882,778.1,777.07,0.85878512]
[1754566193457,0.882,778.1,777.08,0.85878512]
[1754566195358,0.882,778.1,777.1,0.85878512]
[1754566195656,0.882,778.1,777.13,0.85878512]
[1754566196355,0.882,778.1,777.15,0.85878512]
[1754566197461,0.882,778.1,777.16,0.85878512]
[1754566198761,0.882,778.1,777.15,0.85878512]
[1754566198961,0.882,778.1,777.16,0.85878512]
[1754566199861,0.882,778.1,777.1,0.85878512]
[1754566201362,0.882,778.1,777.14,0.85878512]
[1754566202960,0.882,778.1,777.13,0.85878512]
[1754566204265,0.882,778.1,777.11,0.85878512]
[1754566204659,0.882,778.1,777.1,0.85878512]
[1754566204860,0.882,778.1,777.05,0.85878512]
[1754566205266,0.882,778.1,777.06,0.85878512]
[1754566206266,0.882,778.1,777.08,0.85878512]
[1754566206462,0.882,778.1,776.84,1.138619]
[1754566206463,0.882,778.1,777.07,0.85878512]
[1754566207362,0.882,778.1,777.09,0.85878512]
[1754566209672,0.882,778.1,777.1,0.85878512]
[1754566209970,0.882,778.1,777.12,0.85878512]
[1754566210170,2.0319046,778.1,777.15,0.85878512]
[1754566210469,0.882,778.1,777.15,0.85878512]
[1754566210671,0.882,778.1,777.12,0.85878512]
[1754566212771,0.882,778.1,777.08,0.85878512]
[1754566213772,0.882,778.1,777.05,0.85878512]
[1754566214072,0.882,778.1,777.0,0.85878512]
[1754566214270,0.882,778.1,777.01,0.85878512]
[1754566216772,1.1499046,778.08,777.04,0.85878512]
[1754566216971,0.882,778.1,777.0,0.85878512]
[1754566217176,0.882,778.1,776.91,0.85878512]
[1754566217177,1.1499046,778.08,776.91,0.85878512]
[1754566217877,1.1499046,778.06,776.91,0.85878512]
[1754566220380,1.1499046,778.07,776.91,0.85878512]
[1754566220581,1.1499046,778.07,776.65,0.22377766]
[1754566220582,0.882,778.1,776.88,0.85878512]
[1754566221378,0.882,778.1,776.89,0.85878512]
[1754566221981,1.1499046,778.09,776.89,0.85878512]
[1754566222681,2.0319046,778.1,776.89,0.85878512]
[1754566223180,2.0319046,778.1,776.88,0.85878512]
[1754566223880,2.0319046,778.1,776.89,0.85878512]
[1754566224182,2.0319046,778.1,776.88,0.85878512]
[1754566224776,1.1499046,778.09,776.88,0.85878512]
[1754566224977,1.1499046,778.07,776.89,0.85878512]
[1754566225178,1.1499046,778.04,776.9,0.85878512]
[1754566225377,0.22375104,778.11,776.9,0.85878512]
[1754566225378,1.1499046,778.03,776.9,0.85878512]
[1754566225677,1.1499046,777.88,776.97,0.85878512]
[1754566225877,1.1499046,777.84,776.98,0.85878512]
[1754566226081,1.1499046,777.79,777.0,0.85878512]
[1754566226578,0.829,777.78,776.99,0.85878512]
[1754566226978,0.829,777.78,776.97,0.85878512]
[1754566227180,0.829,777.78,776.68,1.7079285]
[1754566227181,0.829,777.78,776.95,0.85878512]
[1754566227578,1.1499046,777.77,776.91,0.85878512]
[1754566228081,1.1499046,777.76,776.91,0.85878512]
[1754566228281,0.829,777.78,776.65,0.22377766]
[1754566228282,1.1499046,777.71,776.93,0.85878512]
[1754566228479,1.1499046,777.73,776.92,0.85878512]
[1754566228682,0.829,777.78,776.86,0.85878512]
[1754566229182,0.829,777.78,776.84,0.85878512]
[1754566229383,0.829,777.78,776.85,0.85878512]
[1754566230082,0.829,777.78,776.65,1.36239666]
[1754566230083,0.829,777.78,776.89,0.85878512]
[1754566230881,1.1499046,777.74,776.92,0.85878512]
[1754566231082,1.1499046,777.76,776.91,0.85878512]
[1754566231282,1.1499046,777.76,776.65,0.22377766]
[1754566231283,1.1499046,777.77,776.88,0.85878512]
[1754566231481,0.829,777.78,776.88,0.85878512]
[1754566233184,0.829,777.78,776.87,0.85878512]
[1754566235285,0.829,777.78,776.83,0.85878512]
[1754566237489,0.829,777.78,776.81,0.85878512]
[1754566239190,0.829,777.78,776.8,0.85878512]
[1754566239988,0.829,777.78,776.79,0.85878512]
[1754566240191,0.829,777.78,776.78,0.85878512]
[1754566240587,1.1499046,778.01,776.78,0.85878512]
[1754566241391,1.1499046,778.01,776.78,0.86101402]
[1754566242190,1.1499046,778.02,776.78,0.86101402]
[1754566243090,1.1499046,777.97,776.8,0.86101402]
[1754566244897,0.22375104,778.11,776.8,0.86101402]
[1754566244898,1.1499046,777.98,776.8,0.86101402]
[1754566247401,1.1499046,777.95,776.81,0.86101402]
[1754566248001,1.1499046,777.94,776.81,0.86101402]
[1754566249201,1.1499046,777.93,776.82,0.86101402]
[1754566249901,1.1499046,777.84,776.85,0.86101402]
[1754566250401,1.1499046,777.9,776.83,0.86101402]
[1754566251501,1.1499046,777.9,776.84,0.86101402]
[1754566251704,1.1499046,777.91,776.84,0.86101402]
[1754566252305,1.1499046,777.9,776.84,0.86101402]
[1754566253011,1.1499046,777.88,776.85,0.86101402]
[1754566254610,1.1499046,777.87,776.84,0.86101402]
[1754566255409,0.86414462,777.7,776.84,0.86101402]
[1754566256613,0.86414462,777.69,776.85,0.86101402]
[1754566256914,0.86414462,777.69,776.84,0.86101402]
[1754566257213,0.86414462,777.69,776.85,0.86101402]
[1754566258209,0.86414462,777.68,776.85,0.86101402]
[1754566259211,0.86414462,777.68,776.86,0.86101402]
[1754566260209,0.86414462,777.65,776.87,0.86101402]
[1754566260414,0.86414462,777.65,776.88,0.86101402]
[1754566260714,0.86414462,777.62,776.85,0.86101402]
[1754566261319,0.86414462,777.62,776.86,0.86101402]
[1754566261519,0.898,777.61,776.86,0.86101402]
[1754566261915,0.898,777.61,776.85,0.86101402]
[1754566262220,1.76214462,777.61,776.86,0.86101402]
[1754566263220,0.86414462,777.6,776.86,0.86101402]
[1754566263823,0.898,777.61,776.86,0.86101402]
[1754566264121,0.898,777.61,776.85,0.86101402]
[1754566264423,0.898,777.61,776.86,0.86101402]
[1754566265418,0.898,777.61,776.81,0.86101402]
[1754566265622,0.898,777.61,776.79,0.86101402]
[1754566265922,0.86414462,777.52,776.65,0.22377766]
[1754566268222,0.86414462,777.53,776.65,0.22377766]
[1754566268427,0.86414462,777.52,776.65,0.22377766]
[1754566269128,0.86414462,777.51,776.65,0.22377766]
[1754566269326,0.86414462,777.52,776.65,0.22377766]
[1754566271234,0.86414462,777.51,776.65,0.22377766]
[1754566271434,0.86414462,777.52,776.65,0.22377766]
[1754566272134,0.86414462,777.5,776.65,0.22377766]
[1754566273231,0.86414462,777.49,776.65,0.22377766]
[1754566273531,0.86414462,777.5,776.65,0.22377766]
[1754566274130,0.86414462,777.59,776.65,0.22377766]
[1754566275837,0.86414462,777.6,776.65,0.22377766]
[1754566276336,0.86414462,777.59,776.65,0.22377766]
[1754566276637,0.86414462,777.58,776.65,0.22377766]
[1754566276834,0.86414462,777.55,776.65,0.22377766]
[1754566277238,0.86414462,777.5,776.65,1.08479168]
[1754566277435,0.86414462,777.57,776.72,0.86101402]
[1754566278439,0.86414462,777.58,776.72,0.86101402]
[1754566278837,0.86414462,777.51,776.76,0.86101402]
[1754566279041,0.86414462,777.52,776.76,0.86101402]
[1754566279244,0.86414462,777.52,776.77,0.86101402]
[1754566279737,0.86414462,777.53,776.79,0.86101402]
[1754566280242,0.86414462,777.58,776.84,0.86101402]
[1754566281343,0.86414462,777.59,776.84,0.86101402]
[1754566282243,0.86414462,777.58,776.84,0.86101402]
[1754566283045,0.86414462,777.6,776.86,0.86101402]
[1754566283244,0.86414462,777.66,776.92,0.86101402]
[1754566283444,0.86414462,777.65,776.91,0.86101402]
[1754566283842,0.86414462,777.64,776.91,0.86101402]
[1754566284338,0.86414462,777.62,776.93,0.86101402]
[1754566284544,0.86414462,777.61,776.93,0.86101402]
[1754566285446,1.175,777.6,776.93,0.86101402]
[1754566285647,1.175,777.6,776.66,1.7079285]
[1754566285648,1.175,777.6,776.92,0.86101402]
[1754566286746,1.175,777.6,776.84,0.86101402]
[1754566287946,1.175,777.6,776.88,0.86101402]
[1754566288647,1.175,777.6,776.95,0.86101402]
[1754566288848,1.175,777.6,777.09,0.86101402]
[1754566289349,1.175,777.6,777.08,0.86101402]
[1754566290348,1.175,777.6,777.07,0.86101402]
[1754566291246,1.175,777.6,777.06,0.86101402]
[1754566292149,1.175,777.6,777.08,0.86101402]
[1754566292348,1.175,777.6,776.65,0.22377766]
[1754566292349,1.175,777.6,777.07,0.86101402]
[1754566293348,1.175,777.6,776.65,0.22377766]
[1754566293349,1.175,777.6,777.06,0.86101402]
[1754566294750,1.175,777.6,777.04,0.86101402]
[1754566295449,1.175,777.6,777.03,0.86101402]
[1754566295645,1.175,777.6,777.02,0.86101402]
[1754566296549,1.175,777.6,777.04,0.86101402]
[1754566297550,1.175,777.6,776.84,1.138619]
[1754566297551,1.175,777.6,777.01,0.86101402]
[1754566298053,1.175,777.6,777.0,0.86101402]
[1754566298548,1.175,777.6,777.02,0.86101402]
[1754566299452,1.175,777.6,777.01,0.86101402]
[1754566299952,1.175,777.6,777.02,0.86101402]
[1754566300947,1.175,777.6,777.01,0.86101402]
[1754566304153,1.175,777.6,777.0,0.86101402]
[1754566304354,1.175,777.6,776.93,0.86101402]
[1754566304549,1.175,777.6,776.89,0.86101402]
[1754566306553,0.86414462,778.09,776.89,0.86101402]
[1754566307850,0.86414462,778.08,776.9,0.86101402]
[1754566308353,0.86414462,778.09,776.89,0.86101402]
[1754566310356,0.86414462,778.1,776.89,0.86101402]
[1754566312058,0.836,778.09,776.89,0.86101402]
[1754566313158,0.836,778.09,776.88,0.86101402]
[1754566313454,0.836,778.09,776.89,0.86101402]
[1754566314158,0.86414462,778.01,776.94,0.86101402]
[1754566314557,0.86414462,778.01,776.95,0.86101402]
[1754566315557,0.86414462,778.02,776.95,0.86101402]
[1754566317357,0.86414462,778.03,776.94,0.86101402]
[1754566319158,0.86414462,778.02,776.95,0.86101402]
[1754566320264,0.86414462,777.96,776.98,0.86101402]
[1754566320664,0.86414462,777.97,776.99,0.86101402]
[1754566321567,0.86414462,778.03,776.95,0.86101402]
[1754566321964,0.86414462,778.02,776.95,0.86101402]
[1754566327272,0.836,778.09,776.65,0.22377766]
[1754566327273,0.86414462,778.01,776.96,0.86101402]
[1754566327972,0.86414462,778.0,776.96,0.86101402]
[1754566328377,0.86414462,777.99,776.96,0.86101402]
[1754566329480,0.86414462,777.98,776.97,0.86101402]
[1754566330479,0.86414462,777.97,776.97,0.86101402]
[1754566331280,0.86414462,777.96,776.98,0.86101402]
[1754566331480,0.86414462,777.9,777.01,0.86101402]
[1754566332179,0.86414462,777.89,777.02,0.86101402]
[1754566333276,0.86414462,777.87,777.03,0.86101402]
[1754566333876,0.86414462,777.88,777.02,0.86101402]
[1754566334380,0.86414462,777.87,777.02,0.86101402]
[1754566334880,0.86414462,777.87,777.03,0.86101402]
[1754566335280,0.86414462,777.86,777.04,0.86101402]
[1754566335577,0.86414462,777.85,777.04,0.86101402]
[1754566336283,0.86414462,777.84,777.05,0.86101402]
[1754566336782,0.86414462,777.83,777.06,0.86101402]
[1754566337281,0.86414462,777.81,777.07,0.86101402]
[1754566337479,0.86414462,777.81,777.08,0.86101402]
[1754566338485,0.86414462,777.8,777.09,0.86101402]
[1754566339387,0.86414462,777.8,777.1,0.86101402]
[1754566339691,0.86414462,777.79,777.1,0.86101402]
[1754566339886,0.86414462,777.84,777.05,0.86101402]
[1754566340086,0.86414462,777.91,777.0,0.86101402]
[1754566340283,0.86414462,777.86,776.97,0.86101402]
[1754566340586,0.86414462,777.64,776.83,0.86101402]
[1754566341583,0.86414462,777.64,776.82,0.86101402]
[1754566341785,0.86414462,777.63,776.82,0.86101402]
[1754566342287,0.86414462,777.49,776.8,0.86101402]
[1754566342489,0.22375104,778.11,776.78,0.86101402]
[1754566342490,0.86414462,777.5,776.78,0.86101402]
[1754566342688,0.86414462,777.48,776.79,0.86101402]
[1754566343188,0.86414462,777.47,776.79,0.86101402]
[1754566343484,0.86414462,777.49,776.78,0.86101402]
[1754566344286,0.86414462,777.51,776.81,0.86101402]
[1754566344493,0.86414462,777.5,776.81,0.86101402]
[1754566345387,0.86414462,777.48,776.76,0.86101402]
[1754566345591,0.86414462,777.47,776.76,0.86101402]
[1754566346087,0.86414462,777.48,776.77,0.86101402]
[1754566346287,0.86414462,777.47,776.77,0.86101402]
[1754566347391,0.86414462,777.47,776.76,0.86101402]
[1754566347593,0.86414462,777.48,776.76,0.86101402]
[1754566348193,0.86414462,777.47,776.75,0.86101402]
[1754566348393,0.86414462,777.49,776.74,0.86101402]
[1754566348696,0.86414462,777.49,776.7,0.22384747]
[1754566348697,0.86414462,777.47,776.7,1.08486149]
[1754566348998,0.86414462,777.47,776.71,0.86101402]
[1754566349298,0.86414462,777.47,776.7,1.08486149]
[1754566349499,0.86414462,777.48,776.7,1.08486149]
[1754566349697,0.86414462,777.48,776.7,0.22384747]
[1754566351199,0.86414462,777.46,776.7,0.22384747]
[1754566351495,0.86414462,777.47,776.7,0.22384747]
[1754566352300,0.86414462,777.48,776.7,0.22384747]
[1754566352500,0.86414462,777.61,776.7,0.22384747]
[1754566352799,1.80314462,777.62,776.7,0.22384747]
[1754566353398,0.939,777.62,776.7,0.22384747]
[1754566353799,1.80314462,777.62,776.7,0.22384747]
[1754566354200,0.939,777.62,776.7,0.22384747]
[1754566358501,0.86414462,777.67,776.7,0.22384747]
[1754566359406,0.86414462,777.68,776.7,0.22384747]
[1754566360007,0.86414462,777.67,776.7,0.22384747]
[1754566361210,0.86414462,777.58,776.7,0.22384747]
[1754566361410,0.86414462,777.59,776.7,0.22384747]
[1754566362308,0.86414462,777.56,776.7,0.22384747]
[1754566362512,0.86414462,777.54,776.7,0.22384747]
[1754566362909,0.86414462,777.56,776.7,0.22384747]
[1754566363711,0.86414462,777.54,776.7,0.22384747]
[1754566364715,0.86414462,777.51,776.7,0.22384747]
[1754566365110,0.86414462,777.48,776.7,0.22384747]
[1754566366411,1.1499046,777.65,776.7,0.22384747]
[1754566366412,0.86414462,777.49,776.7,0.22384747]
[1754566367216,0.86414462,777.53,776.7,0.22384747]
[1754566367413,0.86414462,777.52,776.7,0.22384747]
[1754566368215,0.86414462,777.51,776.7,0.22384747]
[1754566368418,0.86414462,777.52,776.7,0.22384747]
[1754566368916,0.22389932,777.52,776.7,0.22384747]
[1754566369114,0.89,777.51,776.7,0.22384747]
[1754566388336,0.89,777.51,776.39,0.86101402]
[1754566388537,0.89,777.51,776.57,0.22391805]
[1754566388734,0.86414462,777.5,776.57,0.22391805]
[1754566388933,0.86414462,777.46,776.57,0.22391805]
[1754566389334,0.86414462,777.47,776.33,0.86101402]
[1754566389533,0.86414462,777.42,776.48,0.22393894]
[1754566389834,0.86414462,777.41,776.48,0.22393894]
[1754566390036,0.86414462,777.37,776.48,0.22393894]
[1754566390238,0.86414462,777.35,776.48,0.22393894]
[1754566390633,0.86414462,777.35,776.29,0.86101402]
[1754566390838,0.89,777.51,776.24,0.86101402]
[1754566390839,0.86414462,777.32,776.24,0.86101402]
[1754566391038,0.86414462,777.25,776.39,0.22396345]
[1754566393240,0.86414462,777.26,776.39,0.22396345]
[1754566393534,0.86414462,777.25,776.39,0.22396345]
[1754566394340,0.86414462,777.26,776.39,0.22396345]
[1754566394641,0.86414462,777.25,776.39,0.22396345]
[1754566395235,0.86414462,777.26,776.39,0.22396345]
[1754566395738,0.86414462,777.25,776.39,0.22396345]
[1754566395935,0.86414462,777.24,776.39,0.22396345]
[1754566396535,0.86414462,777.22,776.39,0.22396345]
[1754566397238,0.86414462,777.23,776.39,0.22396345]
[1754566397438,0.86414462,777.22,776.39,0.22396345]
[1754566398136,0.86414462,777.26,776.39,0.22396345]
[1754566398340,0.86414462,777.24,776.39,0.22396345]
[1754566399242,0.86414462,777.25,776.39,0.22396345]
[1754566399441,0.86414462,777.23,776.39,0.22396345]
[1754566399844,0.86414462,777.25,776.39,0.22396345]
[1754566400344,0.86414462,777.24,776.39,0.22396345]
[1754566400545,0.89,777.51,776.39,0.22396345]
[1754566400546,0.86414462,777.22,776.39,0.22396345]
[1754566401146,0.86414462,777.21,776.39,0.22396345]
[1754566401355,0.86414462,777.22,776.39,0.22396345]
[1754566401546,0.86414462,777.21,776.39,0.22396345]
[1754566405550,0.86414462,777.22,776.39,0.22396345]
[1754566406449,0.86414462,777.21,776.39,0.22396345]
[1754566406745,0.89,777.51,776.39,0.22396345]
[1754566406746,0.86414462,777.27,776.39,0.22396345]
[1754566408444,0.86414462,777.29,776.39,0.22396345]
[1754566408649,0.86414462,777.25,776.39,0.22396345]
[1754566411249,0.86414462,777.26,776.39,0.22396345]
[1754566411549,0.86414462,777.3,776.39,0.22396345]
[1754566413051,0.86414462,777.31,776.39,0.22396345]
[1754566414552,1.147,777.3,776.39,0.22396345]
[1754566416554,2.01114462,777.3,776.39,0.22396345]
[1754566418050,0.86414462,777.29,776.39,0.22396345]
[1754566418349,0.86414462,777.28,776.39,0.22396345]
[1754566418650,0.86414462,777.27,776.39,0.22396345]
[1754566419453,0.86414462,777.26,776.39,0.22396345]
[1754566419653,0.86414462,777.25,776.39,0.22396345]
[1754566421155,0.86414462,777.24,776.39,0.22396345]
[1754566421350,0.86414462,777.18,776.39,0.22396345]
[1754566422155,1.147,777.3,776.39,0.22396345]
[1754566422355,0.8641716,777.16,776.39,0.22396345]
[1754566423055,0.8641716,777.15,776.39,0.22396345]
[1754566423456,0.8641716,777.14,776.39,0.22396345]
[1754566423657,0.8641716,777.13,776.39,0.22396345]
[1754566423859,0.8641716,777.11,776.39,0.22396345]
[1754566424353,0.8641716,777.1,776.39,0.22396345]
[1754566425554,0.8641716,777.09,776.39,0.22396345]
[1754566427358,0.8641716,777.08,776.39,0.22396345]
[1754566427658,0.8641716,777.11,776.39,0.22396345]
[1754566428363,0.8641716,777.1,776.39,0.22396345]
[1754566429859,0.8641716,777.09,776.39,0.22396345]
[1754566430060,0.8641716,777.06,776.39,0.22396345]
[1754566430957,0.8641716,777.1,776.39,0.22396345]
[1754566432558,0.8641716,777.09,776.39,0.22396345]
[1754566432963,0.8641716,777.18,776.39,0.22396345]
[1754566433164,0.8641716,777.2,776.39,0.22396345]
[1754566433463,0.8641716,777.24,776.39,0.22396345]
[1754566435261,0.8641716,777.23,776.39,0.22396345]
[1754566436766,0.8641716,777.31,776.39,0.22396345]
[1754566438365,0.8641716,777.3,776.39,0.22396345]
[1754566438865,0.8641716,777.29,776.39,0.22396345]
[1754566440367,0.8641716,777.27,776.39,0.22396345]
[1754566440567,0.8641716,777.26,776.39,0.22396345]
[1754566442266,0.8641716,777.25,776.39,0.22396345]
[1754566443463,0.8641716,777.24,776.39,0.22396345]
[1754566445268,0.8641716,777.23,776.39,0.22396345]
[1754566446364,0.8641716,777.22,776.39,0.22396345]
[1754566446570,0.839,777.57,776.39,0.22396345]
[1754566446571,0.8641716,777.09,776.39,0.22396345]
[1754566446969,0.8641716,777.07,776.39,0.22396345]
[1754566447370,0.8641716,777.06,776.39,0.22396345]
[1754566448070,0.8641716,777.14,776.39,0.22396345]
[1754566448268,0.8641716,777.12,776.39,0.22396345]
[1754566448770,0.8641716,777.11,776.39,0.22396345]
[1754566448973,0.8641716,776.87,776.21,0.862518]
[1754566449169,0.8641716,776.85,776.29,0.22399516]
[1754566449670,1.1499046,777.01,776.29,0.22399516]
[1754566449868,0.86773987,776.84,776.29,0.22399516]
[1754566450078,0.86773987,776.85,776.29,0.22399516]
[1754566450272,0.86773987,776.84,776.29,0.22399516]
[1754566450467,0.86773987,776.81,776.24,0.86634466]
[1754566450769,0.839,777.57,776.22,0.86634466]
[1754566450770,0.86773987,776.76,776.22,0.86634466]
[1754566451273,0.86773987,776.78,776.22,0.86634466]
[1754566451473,0.86773987,776.77,776.22,0.86634466]
[1754566451675,0.86773987,776.94,776.13,0.22404275]
[1754566453074,0.86773987,776.95,776.13,0.22404275]
[1754566454275,0.86773987,776.96,776.13,0.22404275]
[1754566454771,0.86773987,777.0,776.13,0.22404275]
[1754566454975,0.86773987,777.01,776.13,0.22404275]
[1754566455175,0.86773987,777.02,776.13,0.22404275]
[1754566455376,0.86773987,777.01,776.13,0.22404275]
[1754566455774,0.86773987,777.03,776.13,0.22404275]
[1754566456172,0.86773987,777.04,776.13,0.22404275]
[1754566456372,0.86773987,777.02,776.13,0.22404275]
[1754566458274,0.86773987,777.03,776.13,0.22404275]
[1754566461379,0.86773987,777.0,776.13,0.22404275]
[1754566461777,0.86773987,777.01,776.13,0.22404275]
[1754566462179,0.86773987,777.02,776.13,0.22404275]
[1754566464680,0.86773987,776.9,776.13,0.22404275]
[1754566464880,0.86773987,776.89,776.13,0.22404275]
[1754566465377,0.86773987,776.88,776.13,0.22404275]
[1754566465982,0.86773987,776.89,776.13,0.22404275]
[1754566466180,0.86773987,776.88,776.13,0.22404275]
[1754566466584,0.86773987,776.89,776.13,0.22404275]
[1754566467585,0.86773987,776.9,776.13,0.22404275]
[1754566467786,0.86773987,776.89,776.13,0.22404275]
[1754566468486,0.86773987,776.85,776.15,0.86634466]
[1754566473492,0.86773987,776.84,776.14,0.86634466]